Cogmind - Beta 13 @@@ ROGUE MODE // 2024.04.17 @ 21:34:47 Player: GR4C3 Result: Destroyed by XV-5KY(R) with Subdweller Machine Gun Performance ------------- Evolutions (0) 0 Regions Visited (3) 600 Robots Destroyed (23) 115 Value Destroyed (641) 641 Prototype IDs (2) 40 Alien Tech Used (0) 0 Bonus (16) 16 TOTAL SCORE: 1412 Bonus ------- High Alert Combat Kills 16 Cogmind --------- Core Integrity 0/250 Matter 290/300 Energy 250/250 System Corruption 0% Temperature Cool (0) Movement Walking (190) Ox1 Location -10/Subcaves Parts ------- > --- POWER (1) -------- Ion Engine > --- PROPULSION (2) --- Aluminum Leg > --- UTILITY (2) ------ Small Storage Unit Improved Terrain Scanner > --- WEAPON (2) ------- Small Laser > --- INVENTORY (8) ---- Aluminum Leg Sensor Array Terrain Scan Processor Seismic Detector Peak State ------------ > --- POWER ------------ Ion Engine > --- PROPULSION ------- Aluminum Leg Aluminum Leg > --- UTILITY ---------- Small Storage Unit Improved Terrain Scanner > --- WEAPON ----------- Assault Rifle Light Assault Rifle > --- INVENTORY -------- Ion Engine Aluminum Leg Sensor Array Terrain Scan Processor Seismic Detector Small Laser Particle Gun Light Assault Rifle [Rating: 10] Favorites ----------- Power Ion Engine Engine Ion Engine Propulsion Aluminum Leg Leg Aluminum Leg Utility Small Storage Unit Device Improved Terrain Scanner Storage Small Storage Unit Weapon Light Assault Rifle Energy Gun Particle Gun Ballistic Gun Light Assault Rifle Launcher Grenade Launcher Build | -11 -10 -10 -10 ------- Run | Yrd Mat Min Sub Slots Evolved . | . . . . Power . | . . . . Propulsion . | . . . . Utility . | . . . . Weapon . | . . . . Parts Attached 17 | 7 1 5 4 Power 3 | 1 . 1 1 Engine 3 | 1 . 1 1 Core . | . . . . Reactor . | . . . . Propulsion 4 | 2 . 2 . Treads . | . . . . Leg 4 | 2 . 2 . Wheel . | . . . . Hover . | . . . . Flight . | . . . . Utility 2 | 2 . . . Device 1 | 1 . . . Storage 1 | 1 . . . Processor . | . . . . Hackware . | . . . . Protection . | . . . . Artifact . | . . . . Weapon 8 | 2 1 2 3 Energy Gun 3 | . . 1 2 Energy Cannon . | . . . . Ballistic Gun 4 | 2 . 1 1 Ballistic Cannon . | . . . . Launcher 1 | . 1 . . Special Weapon . | . . . . Impact Weapon . | . . . . Slashing Weapon . | . . . . Piercing Weapon . | . . . . Special Melee Weapon . | . . . . Unidentified Prototypes . | . . . . Parts Lost 7 | . 1 . 6 Power 1 | . . . 1 Propulsion 1 | . . . 1 Utility . | . . . . Weapon 5 | . 1 . 4 Highest Loss Streak 5 | . 1 . 5 To Critical Strikes . | . . . . Average Slot Usage (%) 98 | . 99 100 94 Engine 14 | . 14 14 14 Leg 27 | . 28 28 25 Device 14 | . 14 14 14 Storage 14 | . 14 14 14 Energy Gun 9 | . . 13 14 Ballistic Gun 14 | . 15 14 11 Launcher 3 | . 11 . . Naked Turns . | . . . . Heaviest Build 16 | 14 16 15 15 Greatest Support 20 | 20 20 20 20 Greatest Overweight (x) 2 | 2 . . 1 Average Overweight (x) . | . . . . Largest Inventory Capacity 8 | 8 8 8 8 Average Capacity 7 | 7 8 8 8 Most Carried 8 | 5 8 8 8 Average Carried 7 | 3 7 7 7 Final Capacity 8 | 8 8 8 8 Final Carried 8 | 4 8 8 4 Class Distribution -------------------- 55% | Scavenger-Mutant 44% | Mutant Dominant Class ---------------- Mutant | -10/Materials Scavenger-Mutant | -10/Mines Scavenger-Mutant | -10/Subcaves Resources | -11 -10 -10 -10 ----------- Run | Yrd Mat Min Sub Matter Collected 641 | 208 187 196 50 Remotely . | . . . . Salvage Created 548 | 36 276 173 63 Parts 46 | 8 27 10 1 Haulers Intercepted . | . . . . Recyclers Shooed . | . . . . Parts Field Recycled . | . . . . Retrieved Matter . | . . . . Parts Self-Destructed 10 | . . . 10 Prevented . | . . . . Kills | -11 -10 -10 -10 ------- Run | Yrd Mat Min Sub Combat Hostiles Destroyed 18 | . 12 4 2 Guns 8 | . 2 4 2 AOE 10 | . 10 . . Classes Destroyed 6 | 1 4 . 1 Builder 2 | . 2 . . Tunneler 2 | 2 . . . Watcher 1 | . 1 . . Swarmer 3 | . 3 . . Grunt 13 | . 9 4 . Subdweller 2 | . . . 2 Best Kill Streak 4 | 1 4 2 2 Combat Bots Only 3 | . 3 2 2 Max Kills in Single Turn 3 | 1 3 1 1 Gunslinging . | . . . . Exploded 2 | . 2 . . Melee . | . . . . Uniques/NPCs Destroyed . | . . . . Combat | -11 -10 -10 -10 -------- Run | Yrd Mat Min Sub Hostile Shots Fired 82 | . 23 17 42 Missed 23 | . 6 5 12 Damage Taken 1105 | . 308 153 644 Core 259 | . 45 71 143 Absorbed by Shields . | . . . . Core Remaining (%) 100 | 100 . . . Volleys Fired 56 | 9 19 11 17 Largest 2 | 2 2 2 2 Hottest 90 | 40 50 85 90 Shots Fired 105 | 18 37 22 28 Gun 87 | 18 19 22 28 Cannon . | . . . . Launcher 18 | . 18 . . Special . | . . . . Kinetic 65 | 18 19 17 11 Thermal 22 | . . 5 17 Explosive 18 | . 18 . . Electromagnetic . | . . . . Robot Hit Streak 11 | 10 5 11 6 Robot Miss Streak 4 | 2 4 2 1 Penetration Max . | . . . . Secondary Targets . | . . . . Shots Hit Robots 67 | 14 16 17 20 Core Hits 43 | 3 26 8 6 Critical Kills . | . . . . Critical Parts Destroyed . | . . . . Critical Strikes 1 | . . 1 . Burn 1 | . . 1 . Melee Attacks . | . . . . Impact . | . . . . Slashing . | . . . . Piercing . | . . . . Sneak Attacks . | . . . . Combat Hostiles . | . . . . Follow-up Attacks . | . . . . Damage Inflicted 1578 | 154 990 200 234 Guns 713 | 154 126 199 234 Cannons . | . . . . Explosions 863 | . 863 . . Melee . | . . . . Ramming 2 | . 1 1 . Kinetic 464 | 154 126 133 51 Thermal 249 | . . 66 183 Explosive 863 | . 863 . . Electromagnetic . | . . . . Impact . | . . . . Slashing . | . . . . Piercing . | . . . . Highest Corruption . | . . . . Average Corruption . | . . . . Corruption Purged . | . . . . Corruption Blocked . | . . . . Overload Shots . | . . . . Overflow Damage 20 | . 20 . . Projectiles . | . . . . Explosions 20 | . 20 . . Melee . | . . . . Knockbacks . | . . . . Impact . | . . . . Kinetic . | . . . . Secondary . | . . . . Self-Inflicted Damage 61 | . 61 . . Shots 2 | . 2 . . Rammed . | . . . . Targets Rammed 2 | . 1 1 . Kicked 2 | . 1 1 . Crushed . | . . . . Highest Temperature 110 | . 17 110 20 Average Temperature 22 | . 7 39 8 Received Heat Transfer 297 | . 117 105 75 Siege Activations . | . . . . Robots Corrupted . | . . . . Combat Hostiles . | . . . . Parts Fried . | . . . . Impact Corruptions . | . . . . Robots Melted . | . . . . Combat Hostiles . | . . . . Parts Melted 2 | . . . 2 Heat Transferred 643 | . . 222 421 Parts Sabotaged . | . . . . Parts Stolen . | . . . . Parts Stripped . | . . . . Power Chain Reactions . | . . . . Alert | -11 -10 -10 -10 ------- Run | Yrd Mat Min Sub Peak Influence 436 | 10 436 195 . Initial 95 | . 6 95 . Average 136 | 4 224 99 . Maximum Alert Level 2 | . 2 . . Low Security (%) 80 | 100 42 100 . Level 1 18 | . 53 . . Level 2 1 | . 3 . . Level 3 . | . . . . Level 4 . | . . . . Level 5 . | . . . . High Security . | . . . . Max Security . | . . . . Squads Dispatched 2 | . 2 . . Investigation 1 | . 1 . . Extermination . | . . . . Reinforcement 1 | . 1 . . Assault . | . . . . Garrison . | . . . . Intercept . | . . . . Searches Triggered . | . . . . Construction Impeded . | . . . . Haulers Reinforced . | . . . . Active Scanning Responses . | . . . . Cargo Convoy Interrupts . | . . . . Stealth | -11 -10 -10 -10 --------- Run | Yrd Mat Min Sub Distress Signals . | . . . . Communications Jammed . | . . . . Distress Signals . | . . . . Times Spotted 22 | . 14 4 4 Peak Tracking Total 4 | . 4 2 3 Tactical Retreats . | . . . . Traps | -11 -10 -10 -10 ------- Run | Yrd Mat Min Sub Traps Triggered 2 | . 2 . . Indirectly . | . . . . Trap Hack Attempts . | . . . . Triggered . | . . . . Disarmed . | . . . . Reprogrammed . | . . . . Reused . | . . . . Traps Extracted . | . . . . Installed . | . . . . Triggered . | . . . . Machines | -11 -10 -10 -10 ---------- Run | Yrd Mat Min Sub Machines Disabled 1 | . 1 . . Max in Single Turn 1 | . 1 . . Machines Repaired . | . . . . Machines Dismantled . | . . . . Machines Sabotaged . | . . . . Overloaded Fab Kills . | . . . . Hacking | -11 -10 -10 -10 --------- Run | Yrd Mat Min Sub Machines Accessed 3 | . 3 . . Terminals 2 | . 2 . . Fabricators . | . . . . Repair Stations . | . . . . Recycling Units 1 | . 1 . . Scanalyzers . | . . . . Garrison Access . | . . . . Total Hacks 3 | . 3 . . Successful 3 | . 3 . . Failed . | . . . . Catastrophic . | . . . . Database Lockouts . | . . . . Manual . | . . . . Terminals 2 | . 2 . . Fabricators . | . . . . Repair Stations . | . . . . Recycling Units 1 | . 1 . . Scanalyzers . | . . . . Garrison Access . | . . . . Terminal Hacks 2 | . 2 . . Prototype ID Bank 1 | . 1 . . Zone Layout 1 | . 1 . . Fabricator Hacks . | . . . . Repair Station Hacks . | . . . . Recycling Unit Hacks 1 | . 1 . . Report Inventory 1 | . 1 . . Scanalyzer . | . . . . Garrison Access Hacks . | . . . . Unauthorized Hacks . | . . . . Terminals . | . . . . Fabricators . | . . . . Repair Stations . | . . . . Recycling Units . | . . . . Scanalyzers . | . . . . Garrison Access . | . . . . Data Cores Recovered . | . . . . Used . | . . . . Hacking Detections 1 | . 1 . . Full Trace Events . | . . . . Feedback Events . | . . . . Feedback Blocked . | . . . . Robot Schematics Acquired . | . . . . Robots Built . | . . . . Authchips . | . . . . Time . | . . . . Total Robot Build Rating . | . . . . Part Schematics Acquired . | . . . . Parts Built . | . . . . Authchips . | . . . . Time . | . . . . Total Part Build Rating . | . . . . Parts Repaired . | . . . . Time . | . . . . Parts Recycled . | . . . . Recycled Matter . | . . . . Retrieved Matter . | . . . . Retrieved Components . | . . . . Parts Scanalyzed . | . . . . Part Schematics Acquired . | . . . . Parts Damaged . | . . . . Bothacking | -11 -10 -10 -10 ------------ Run | Yrd Mat Min Sub Used RIF Installer . | . . . . Robots Hacked . | . . . . Non-combat . | . . . . Combat . | . . . . Robot Hacks Applied . | . . . . Relay Couplers Released . | . . . . Fabnet Peak Effective % . | . . . . Robots Rewired . | . . . . Allies Hacked . | . . . . Hacks Repelled . | . . . . Allies | -11 -10 -10 -10 -------- Run | Yrd Mat Min Sub Total Allies 2 | . . 2 . Largest Group 2 | . . 2 2 Highest-Rated Group 45 | . . 45 45 Highest-Rated Ally 31 | . . 31 31 Total Orders . | . . . . Ally Attacks 2 | . . . 2 Total Damage 22 | . . . 22 Kills . | . . . . Allies Corrupted . | . . . . Allies Melted . | . . . . Intel | -11 -10 -10 -10 ------- Run | Yrd Mat Min Sub Robot Analysis Total . | . . . . Derelict Logs Recovered 3 | . . 3 . Drone Launches . | . . . . Drone Recoveries . | . . . . Exploration | -11 -10 -10 -10 ------------- Run | Yrd Mat Min Sub Turns Passed 1604 | 98 443 726 337 Spaces Moved 1148 | 56 316 547 229 Core 19 | 19 . . . Treads . | . . . . Legs 1129 | 37 316 547 229 Wheels . | . . . . Hover . | . . . . Flight . | . . . . Fastest Speed 50 | 50 120 120 120 Average Speed 120 | 102 120 120 126 Slowest Speed 190 | 150 120 120 190 Overloaded Moves . | . . . . Propulsion Burnouts . | . . . . Robots Hopped . | . . . . Cave-ins Triggered . | . . . . Exploration Rate (%) 46 | 4 59 97 26 Regions Visited 3 Branch Regions 2 Pre-discovered Areas 2 | . . 2 . Known Exits Taken . | . . . . Unknown Exits Taken 3 | 1 1 1 . Scrap Searched 2 | . . 2 . Spaces Dug . | . . . . Terrain Destroyed 110 | . 110 . . Melee . | . . . . Projectile . | . . . . AOE 110 | . 110 . . Terrain Rammed . | . . . . Walls Destroyed . | . . . . Machines Disabled . | . . . . Actions | -11 -10 -10 -10 --------- Run | Yrd Mat Min Sub Total 1270 | 79 342 598 251 Wait 28 | . . 27 1 Move 1145 | 55 315 546 229 Hop . | . . . . Pick Up 16 | 8 5 3 . Fast Attach 3 | 3 . . . Attach 9 | 4 . 1 4 Detach . | . . . . Swap 5 | . 1 4 . Drop 6 | . 1 5 . Fire 56 | 9 19 11 17 Melee . | . . . . Ram . | . . . . Kick 2 | . 1 1 . Crush . | . . . . Escape Stasis . | . . . . Rewire . | . . . . Trap . | . . . . Miscellaneous . | . . . . Route ------- -11/Scrapyard -10/Materials (discovered 3 exits: [*Mat] / [*Min x2]) -10/Mines (discovered 3 exits: [*Mat x2] / [*Sub]) -10/Subcaves History --------- Turn | Location | Event 13 | -11/Scrapyard | Discovered new exit (range 15) 99 | -11/Scrapyard | Entered Materials 244 | -10/Materials | Discovered new exit (range 15) 304 | -10/Materials | Build established: Mutant 456 | -10/Materials | Discovered new exit (range 8) 474 | -10/Materials | Discovered new exit (range 16) 542 | -10/Materials | Entered Mines 611 | -10/Mines | Learned Materials machine intel 612 | -10/Mines | Learned location of Zion (-6) 678 | -10/Mines | Learned location of Storage (-8) 922 | -10/Mines | Learned Materials trap positions 948 | -10/Mines | Build established: Scavenger-Mutant 993 | -10/Mines | Discovered new exit (range 6) 1027 | -10/Mines | Discovered new exit (range 13) 1233 | -10/Mines | Discovered new exit (range 7) 1268 | -10/Mines | Entered Subcaves 1268 | -10/Subcaves | Accompanied by 2 allies 1273 | -10/Subcaves | Led the pair of lost Derelicts to an unsafe place 1507 | -10/Subcaves | Core integrity fell below 50% 1537 | -10/Subcaves | Lost 3 allies 1580 | -10/Subcaves | Core integrity fell below 20% 1582 | -10/Subcaves | Lost 5 parts (1p1n3w) 1605 | -10/Subcaves | Destroyed by XV-5KY(R) with Subdweller Machine Gun Last Messages --------------- 01506_ 1T-SP2(g) destroyed. 01508_ Subatomizers dissect the Mak. Leg. 01511_ Sub. Beam Cannon melted. 01511_ Disposable Heat Sink melted. 01511_ 8I-HSF(R) destroyed. 01515_ Acquired 5 matter. 01518_ Subatomizers dissect the Mak. Power Source. 01523_ MM-VSW(u) tweaks Twisted Machinery. 01526_ Particle Gun destroyed. 01527_ Ion Engine destroyed. 01530_ Assault Rifle destroyed. 01533_ Acquired 16 matter. 01535_ 3R-H6T(O) collects matter. 01536_ Lgt. Assault Rifle destroyed. 01538_ Subatomizers dissect the Mak. Power Source. 01540_ 3R-H6T(O) collects matter. 01549_ Subatomizers dissect the Mak. Power Source. 01549_ 3R-H6T(O) collects matter. 01551_ Aluminum Leg destroyed. 01599_ Med. Laser destroyed. Map ----- +----------------------------------------------------+ | ??????????????????????? ? ???#%[??# ## ##??????? | | ?????????????????????????? ??## ### ###??##? | | ?????????????????????????? ??#" =# #????? | | ??????????????????????????????# %* ## ##??#?? | | ??????????????????????????????## #### ###????? | | ??????????????????????????##?#?# ! ### #??????? | | ???????????????????????????????# ! #?#?#??? | | ????????????????????????????##### # ##?????? | | ??????????????????????????#?????### ! ## ##???## | | ??????????????????????????????#???#* =## ##### | | ??????????????????????????????????# ! ## | | ????????????????????#?????????????# *!### ## | | ????????????????????????????#?????# ###### | | ????????????????????#?????????????# ##??##### | | ???????????????????????????????#?## ###???### | | ??????????????????#?????#?????????## ###???# | | ?????????????????????????????????### ##??? | | ???????????????????????????#???#??# #??? | | ????????????????#???????######????# ###??? | | ???????????????????????## ##???## ######??? ? | | ??????????????#????????# ####?# ##????????? | | ??????????????????????## ### &##?#?????? | | ?????????????????????## ## #?#?????? | | ?????????????????????# #### #?????? | | ?????????????????????# R##?# ? | | ?????????????????????# @## ### ## | | ?????????????????????# ## #??# ## # #? | | ?????????????????????#### ## #??? #?##?###? | | ????????????????????????#### #???# #???????? | | ????????????#?????????????# ######???? #?#?????? | | ????????????????????????? ?????#???? ???????? | | ???????????????????????? ?????????? ##??????? | | ??????????????????????? ## ??? ???????##???????? | | ?????????????????????????# ????????????????????? | | ???????????????????? ???? ????? ??????????????? | | ????????????????????????? ?? ?????????????????? | | ????????????????????????? ? ????????????????????? | | ?????????????????????????????? ??????????????????? | | ?????????????????????????????????????????????????? | | ?????????????????????????????????????????????????? | | ?????????????????????????????????????????????????? | | ?????????????????????????????????????????????????? | | ?????????????????????????????????????????????????? | | ?????????????????????????????????????????????????? | | ?????????????????????????????????????????????????? | | ?????????????????????????????????????????????????? | | ?????????????????????????????????????????????????? | | ?????????????????????????????????????????????????? | | ?????????????????????????????????????????????????? | | ?????????????????????????????????????????????????? | +----------------------------------------------------+ Best States ------------- Heat Dissipation 25 Energy Generation 10 Energy Capacity 250 Matter Stores 300 Matter Capacity 300 Sight Range 16 Terrain Scan Range 16 Terrain Scan Density 10 Evasion (%) 55 Item Schematics ----------------- None Robot Schematics ------------------ None Fabricated ------------ Nothing Alien Tech Used ----------------- None Achievements -------------- None Challenges ------------ None Game ------ Seed ChainMetafiberTerminator Manual? 0 Play Time 00:16:57 Cumulative 39.6 hours Start 2024.04.17 @ 21:19:14 End 2024.04.17 @ 21:34:47 Sessions 1 Manual Loads 0 Difficulty Rogue Special Mode None Game No. 30 Rogue 16 Adventurer 14 Explorer 0 Win Type - Total 0 Types 0/0/0/0/0/0/0/0/0 Lore% 19 Gallery% 30 Achievement% 19 Wizard Run 0 Options --------- Layout 1 ASCII 0 Keyboard 0 Movement Mouse Keybinds 0 Fullscreen 2 Font 36/Smallcaps Map View 53x45 Zoom Use 0% Tactical HUD 1 Map Filters NONE Filters NONE Steam 1 RUN: a191b327-7a53-4b00-a691-b1cbaa981635